Workbook

Sheet Resumo Total
A1: Ministério do Desenvolvimento Regional - MDR
A2: Companhia de Desenvolvimento dos Vales do São Francisco e do Parnaíba
A5: CONTRATAÇÃO DOS SERVIÇOS TÉCNICOS ESPECIALIZADOS DE APOIO ÀS ATIVIDADES DA GESTÃO DO PROJETO DE INTEGRAÇÃO DO RIO SÃO FRANCISCO COM AS BACIAS HIDROGRÁFICAS DO NORDESTE SETENTRIONAL – PISF
A9: RESUMO GERAL
A11: ITEM | B11: DISCRIMINAÇÃO | C11: Preço Total (R$)
A14: 1. | B14: Mão-de-Obra (Incluindo Encargos Sociais, Benefícios e Despesas Indiretas) | C14: ='Mao de Obra'!C28 -> 0
A15: 2. | B15: Outras Despesas (Incluindo Despesas Indiretas) | C15: =SUM(C16:C19) -> 0
A16: 2.1 | B16: Escritório (Aluguel, mobiliário, Manutenção, etc) | C16: ='Outras Despesas (Adm_Manut)'!K13 -> 0
A17: 2.2 | B17: Veículos | C17: ='Outras Despesas (Adm_Manut)'!K22 -> 0
A18: 2.3 | B18: Equipamentos Diversos | C18: ='Outras Despesas (Adm_Manut)'!K25 -> 0
A19: 2.4 | B19: Viagens/Diárias (Pagos por Demanda) | C19: ='Outras Despesas (Adm_Manut)'!K30 -> 0
A20: Total Geral (R$): | C20: =C14+C15 -> 0
A23: NOME DO INFORMANTE: | C23: QUALIFICAÇÃO:
A25: ASSINATURA: | C25: DATA:
A27: OBSERVAÇÃO:

Sheet Mao de Obra
A1: Ministério do Desenvolvimento Regional - MDR
A2: Companhia de Desenvolvimento dos Vales do São Francisco e do Parnaíba
A6: CONTRATAÇÃO DOS SERVIÇOS TÉCNICOS ESPECIALIZADOS DE APOIO ÀS ATIVIDADES DA GESTÃO DO PROJETO DE INTEGRAÇÃO DO RIO SÃO FRANCISCO COM AS BACIAS HIDROGRÁFICAS DO NORDESTE SETENTRIONAL – PISF
A11: MÃO-DE-OBRA
A13: CUSTOS DIRETOS
A14: MÃO DE OBRA (A+B) | C14: =C15+C19 -> 0
A15: A | B15: EQUIPE | C15: =SUM(C16:C18) -> 0
A16: A1 | B16: Com Vínculo | C16: ='Mão de Obra (Detalhamento)'!K61 -> 0
A17: A2 | B17: Consultoria | C17: ='Mão de Obra (Detalhamento)'!K62 -> 0
A18: A3 | B18: Outros Custos (PERICULOSIDADE) | C18: ='Mão de Obra (Detalhamento)'!L63 -> 0
A19: B | B19: ENCARGOS SOCIAIS | C19: =SUM(C20:C21) -> 0
A20: B1 | B20: INCIDENTE SOBRE O ITEM A1 + A3 | C20: ='Mão de Obra (Detalhamento)'!M61 -> 0
A21: B2 | B21: INCIDENTE SOBRE O ITEM A2 | C21: ='Mão de Obra (Detalhamento)'!M62 -> 0
A22: CUSTOS INDIRETOS
A23: C | B23: CUSTO DE ADMINISTRAÇÃO (TAXA DE 15,50% DO ITEM 'A') | C23: =0.155*C15 -> 0
A24: D | B24: REMUNERAÇÃO DE ESCRITÓRIO (TAXA DE 2,5% DOS ITENS (A + B + C) | C24: =0.025*(C14+C23) -> 0
A25: E | B25: DESPESAS FISCAIS ( 16,62% DOS ITENS A + B + C + D) | C25: =0.1662*(C14+C23+C24) -> 0
A26: CUSTOS INDIRETOS - Total (R$): | C26: =SUM(C23:C25) -> 0
A28: PREÇO TOTAL - MÃO-DE-OBRA (R$): | C28: =C14+C26 -> 0
A31: NOME DO INFORMANTE: | C31: QUALIFICAÇÃO:
A33: ASSINATURA: | C33: DATA:

Sheet Mão de Obra (Detalhamento)
A1: Ministério do Desenvolvimento Regional - MDR
A2: Companhia de Desenvolvimento dos Vales do São Francisco e do Parnaíba
A4: CONTRATAÇÃO DOS SERVIÇOS TÉCNICOS ESPECIALIZADOS DE APOIO ÀS ATIVIDADES DA GESTÃO DO PROJETO DE INTEGRAÇÃO DO RIO SÃO FRANCISCO COM AS BACIAS HIDROGRÁFICAS DO NORDESTE SETENTRIONAL – PISF
A7: MÃO DE OBRA
C9: Encargos Sociais
C10: Periculosidade | E10: Horista (DF): | G10: Horista (PE): | I10: Mensalista (DF): | K10: Mensalista (PE): | M10: Sem Vínculo
C11: 0.3 | E11: 1.1409 | G11: 1.1503 | I11: 0.7343 | K11: 0.7107 | M11: 0.2
A13: ITEM | B13: DISCRIMINAÇÃO | C13: CODIGO | D13: UND | E13: QTD | F13: Prazo (Mês) | G13: SALÁRIOS MENSAL (R$) | K13: SALÁRIOS TOTAL (R$)
G14: SEM Encargo | H14: Periculosidade (30%) | I14: Encargos Sociais | J14: COM Encargo | K14: SEM Encargo | L14: Periculosidade (30%) | M14: Encargos Sociais | N14: COM Encargo
A16: 1. | B16: COORDENAÇÃO GERAL
A17: 1.1 | B17: Gerente de Contrato - Engenheiro Senior | C17: P0 | D17: und/mês | E17: 1 | F17: 12 | G17: =VLOOKUP(C17,'Base de Preço (Salários)'!$A$12:$D$29,4,FALSE) -> 0 | H17: 0 | I17: =ROUND((G17+H17)*$K$11,2) -> 0 | J17: =G17+H17+I17 -> 0 | K17: =E17*F17*G17 -> 0 | L17: =E17*F17*H17 -> 0 | M17: =ROUND((K17+L17)*$K$11,2) -> 0 | N17: =K17+L17+M17 -> 0
A18: 2. | B18: ADMINISTRAÇÃO E LOGÍSTICA
A19: 2.1 | B19: Coordenador Administrativo Financeiro (Chefe de Escritório) | C19: AS | D19: und/mês | E19: 1 | F19: 12 | G19: =VLOOKUP(C19,'Base de Preço (Salários)'!$A$12:$D$29,4,FALSE) -> 0 | H19: 0 | I19: =ROUND((G19+H19)*$K$11,2) -> 0 | J19: =G19+H19+I19 -> 0 | K19: =E19*F19*G19 -> 0 | L19: =E19*F19*H19 -> 0 | M19: =(K19+L19)*$K$11 -> 0 | N19: =K19+L19+M19 -> 0
A20: 2.2 | B20: Assistente Administrativo | C20: A1 | D20: und/mês | E20: 1 | F20: 12 | G20: =VLOOKUP(C20,'Base de Preço (Salários)'!$A$12:$D$29,4,FALSE) -> 0 | H20: 0 | I20: 0 | J20: =G20+H20+I20 -> 0 | K20: =E20*F20*G20 -> 0 | L20: =E20*F20*H20 -> 0 | M20: 0 | N20: =K20+L20+M20 -> 0
A21: 2.3 | B21: Ajudante Administrativo | C21: A2 | D21: und/mês | E21: 1 | F21: 12 | G21: =VLOOKUP(C21,'Base de Preço (Salários)'!$A$12:$D$29,4,FALSE) -> 0 | H21: 0 | I21: 0 | J21: =G21+H21+I21 -> 0 | K21: =E21*F21*G21 -> 0 | L21: =E21*F21*H21 -> 0 | M21: 0 | N21: =K21+L21+M21 -> 0
A22: 2.4 | B22: Técnico Pleno - TI | C22: T1 | D22: und/mês | E22: 1 | F22: 12 | G22: =VLOOKUP(C22,'Base de Preço (Salários)'!$A$12:$D$29,4,FALSE) -> 0 | H22: 0 | I22: 0 | J22: 0 | K22: 0 | L22: 0 | M22: 0 | N22: =K22+L22+M22 -> 0
A23: 2.5 | B23: Serviços Gerais (Limpeza / Copa) | C23: A4 | D23: und/mês | E23: 1 | F23: 12 | G23: =VLOOKUP(C23,'Base de Preço (Salários)'!$A$12:$D$29,4,FALSE) -> 0 | H23: 0 | I23: 0 | J23: =G23+H23+I23 -> 0 | K23: 0 | L23: 0 | M23: 0 | N23: =+K23+L23+M23 -> 0
A24: 2.6 | B24: Vigia Noturno | C24: A4.1 | D24: und/mês | E24: 1 | F24: 12 | G24: =VLOOKUP(C24,'Base de Preço (Salários)'!$A$12:$D$30,4,FALSE) -> 0 | H24: =ROUND(G24*$C$11,2) -> 0 | I24: 0 | J24: 0 | K24: 0 | L24: 0 | M24: 0 | N24: =K24+L24+M24 -> 0
A25: 2.7 | B25: Motorista | C25: A3 | D25: und/mês | E25: 1 | F25: 12 | G25: =VLOOKUP(C25,'Base de Preço (Salários)'!$A$12:$D$29,4,FALSE) -> 0 | H25: 0 | I25: 0 | J25: 0 | K25: 0 | L25: 0 | M25: 0 | N25: =K25+L25+M25 -> 0
A26: 3. | B26: COMUNICAÇÃO SOCIAL
A27: 3.1 | B27: Profissional Médio em Comunicação - Jornalista | C27: P2 | D27: und/mês | E27: 1 | F27: 12 | G27: =VLOOKUP(C27,'Base de Preço (Salários)'!$A$12:$D$29,4,FALSE) -> 0 | I27: =ROUND((G27+H27)*$K$11,2) -> 0 | J27: =G27+H27+I27 -> 0 | K27: =E27*F27*G27 -> 0 | L27: 0 | M27: =(K27+L27)*$K$11 -> 0 | N27: =K27+L27+M27 -> 0
A28: 4. | B28: MEIO AMBIENTE E SEGURANÇA E SAÚDE OCUPACIONAL
A29: 4.1 | B29: Engenheiro Pleno - Ambiental | C29: P1 | D29: und/mês | E29: 1 | F29: 12 | G29: =VLOOKUP(C29,'Base de Preço (Salários)'!$A$12:$D$29,4,FALSE) -> 0 | H29: 0 | I29: =ROUND((G29+H29)*$K$11,2) -> 0 | J29: =G29+H29+I29 -> 0 | K29: =E29*F29*G29 -> 0 | L29: 0 | M29: =(K29+L29)*$K$11 -> 0 | N29: =K29+L29+M29 -> 0
A30: 4.2 | B30: Engenheiro Médio (Engenheiro Segurança do Trabalho) | C30: P2 | D30: und/mês | E30: 1 | F30: 12 | G30: =VLOOKUP(C30,'Base de Preço (Salários)'!$A$12:$D$29,4,FALSE) -> 0 | H30: =ROUND(G30*$C$11,2) -> 0 | I30: =ROUND((G30+H30)*$K$11,2) -> 0 | J30: =G30+H30+I30 -> 0 | K30: =E30*F30*G30 -> 0 | L30: 0 | M30: =(K30+L30)*$K$11 -> 0 | N30: =K30+L30+M30 -> 0
A31: 5. | B31: ENGENHARIA
A32: 5.1. | B32: CIVIL
A33: 5.1.1 | B33: Engenheiro Pleno - Civil | C33: P1 | D33: und/mês | E33: 2 | F33: 12 | G33: =VLOOKUP(C33,'Base de Preço (Salários)'!$A$12:$D$29,4,FALSE) -> 0 | H33: =ROUND(G33*$C$11,2) -> 0 | I33: =ROUND((G33+H33)*$K$11,2) -> 0 | J33: =G33+H33+I33 -> 0 | K33: =E33*F33*G33 -> 0 | L33: =E33*F33*H33 -> 0 | M33: =(K33+L33)*$K$11 -> 0 | N33: =K33+L33+M33 -> 0
A34: 5.1.2 | B34: Engenheiro Pleno - Hidrólogo (Civil) | C34: P1 | D34: und/mês | E34: 1 | F34: 12 | G34: =VLOOKUP(C34,'Base de Preço (Salários)'!$A$12:$D$29,4,FALSE) -> 0 | H34: 0 | I34: 0 | J34: 0 | K34: 0 | L34: 0 | M34: 0 | N34: 0
A35: 5.1.3 | B35: Engenheiro Pleno - Geotécnico/Geólogo | C35: P1 | D35: und/mês | E35: 1 | F35: 12 | G35: =VLOOKUP(C35,'Base de Preço (Salários)'!$A$12:$D$29,4,FALSE) -> 0 | H35: 0 | I35: 0 | J35: 0 | K35: 0 | L35: 0 | M35: 0 | N35: 0
A36: 5.1.4 | B36: Engenheiro Júnior - Civil | C36: P3 | D36: und/mês | E36: 2 | F36: 12 | G36: =VLOOKUP(C36,'Base de Preço (Salários)'!$A$12:$D$29,4,FALSE) -> 0 | H36: 0 | I36: 0 | J36: 0 | K36: 0 | L36: =E36*F36*H36 -> 0 | M36: 0 | N36: 0
A37: 5.1.5 | B37: Engenheiro Júnior - Hidrólogo (Civil) | C37: P3 | D37: und/mês | E37: 1 | F37: 12 | G37: =VLOOKUP(C37,'Base de Preço (Salários)'!$A$12:$D$29,4,FALSE) -> 0 | H37: 0 | I37: 0 | J37: =G37+H37+I37 -> 0 | K37: =E37*F37*G37 -> 0 | L37: 0 | M37: 0 | N37: 0
A38: 5.1.6 | B38: Engenheiro Júnior - Geotécnico/Geólogo | C38: P3 | D38: und/mês | E38: 1 | F38: 12 | G38: =VLOOKUP(C38,'Base de Preço (Salários)'!$A$12:$D$29,4,FALSE) -> 0 | H38: 0 | I38: 0 | J38: 0 | K38: 0 | L38: 0 | M38: 0 | N38: 0
A39: 5.1.7 | B39: Topógrafo | C39: TS | D39: und/mês | E39: 1 | F39: 12 | G39: =VLOOKUP(C39,'Base de Preço (Salários)'!$A$12:$D$29,4,FALSE) -> 0 | H39: 0 | I39: 0 | J39: 0 | K39: 0 | L39: =E39*F39*H39 -> 0 | M39: 0 | N39: 0
A40: 5.1.8 | B40: Auxiliar de Topografia | C40: T3 | D40: und/mês | E40: =E39*2 -> 2 | F40: 12 | G40: =VLOOKUP(C40,'Base de Preço (Salários)'!$A$12:$D$29,4,FALSE) -> 0 | H40: 0 | I40: 0 | J40: 0 | K40: 0 | L40: =E40*F40*H40 -> 0 | M40: 0 | N40: 0
A41: 5.2. | B41: MECÂNICA
A42: 5.2.1 | B42: Engenheiro Pleno - Mecânica | C42: P1 | D42: und/mês | E42: 2 | F42: 12 | G42: =VLOOKUP(C42,'Base de Preço (Salários)'!$A$12:$D$29,4,FALSE) -> 0 | H42: =ROUND(G42*$C$11,2) -> 0 | I42: =ROUND((G42+H42)*$K$11,2) -> 0 | J42: 0 | K42: 0 | L42: =E42*F42*H42 -> 0 | M42: =(K42+L42)*$K$11 -> 0 | N42: =K42+L42+M42 -> 0
A43: 5.2.2 | B43: Engenheiro Pleno - Hidráulico (Civil ou Mecânica) | C43: P1 | D43: und/mês | E43: 1 | F43: 12 | G43: =VLOOKUP(C43,'Base de Preço (Salários)'!$A$12:$D$29,4,FALSE) -> 0 | H43: =ROUND(G43*$C$11,2) -> 0 | I43: =ROUND((G43+H43)*$K$11,2) -> 0 | J43: 0 | K43: 0 | L43: 0 | M43: =(K43+L43)*$K$11 -> 0 | N43: =K43+L43+M43 -> 0
A44: 5.2.3 | B44: Engenheiro Júnior - Mecânica | C44: P3 | D44: und/mês | E44: 2 | F44: 12 | G44: =VLOOKUP(C44,'Base de Preço (Salários)'!$A$12:$D$29,4,FALSE) -> 0 | H44: =ROUND(G44*$C$11,2) -> 0 | I44: =ROUND((G44+H44)*$K$11,2) -> 0 | J44: =G44+H44+I44 -> 0 | K44: =E44*F44*G44 -> 0 | L44: =(E44*(F44*50%)*H44) -> 0 | M44: =(K44+L44)*$K$11 -> 0 | N44: =K44+L44+M44 -> 0
A45: 5.2.4 | B45: Engenheiro Júnior - Hidráulico (Civil ou Mecânica) | C45: P3 | D45: und/mês | E45: 1 | F45: 12 | G45: =VLOOKUP(C45,'Base de Preço (Salários)'!$A$12:$D$29,4,FALSE) -> 0 | H45: =ROUND(G45*$C$11,2) -> 0 | I45: =ROUND((G45+H45)*$K$11,2) -> 0 | J45: 0 | K45: 0 | L45: =(E45*(F45*50%)*H45) -> 0 | M45: =(K45+L45)*$K$11 -> 0 | N45: =K45+L45+M45 -> 0
A46: 5.3. | B46: ELÉTRICA
A47: 5.3.1 | B47: Engenheiro Pleno - Eletricista | C47: P1 | D47: und/mês | E47: 2 | F47: 12 | G47: =VLOOKUP(C47,'Base de Preço (Salários)'!$A$12:$D$29,4,FALSE) -> 0 | H47: =ROUND(G47*$C$11,2) -> 0 | I47: =ROUND((G47+H47)*$K$11,2) -> 0 | J47: =G47+H47+I47 -> 0 | K47: =E47*F47*G47 -> 0 | L47: =(E47*(F47*50%)*H47) -> 0 | M47: =(K47+L47)*$K$11 -> 0 | N47: =K47+L47+M47 -> 0
A48: 5.3.2 | B48: Engenheiro Pleno - Automação | C48: P1 | D48: und/mês | E48: 1 | F48: 12 | G48: =VLOOKUP(C48,'Base de Preço (Salários)'!$A$12:$D$29,4,FALSE) -> 0 | H48: 0 | I48: 0 | J48: 0 | K48: 0 | L48: 0 | M48: =(K48+L48)*$K$11 -> 0 | N48: 0
A49: 5.3.3 | B49: Engenheiro Pleno - Telecomunicações | C49: P1 | D49: und/mês | E49: 1 | F49: 12 | G49: =VLOOKUP(C49,'Base de Preço (Salários)'!$A$12:$D$29,4,FALSE) -> 0 | H49: 0 | I49: 0 | J49: 0 | K49: 0 | L49: 0 | M49: 0 | N49: 0
A50: 5.3.4 | B50: Engenheiro Júnior - Eletricista | C50: P3 | D50: und/mês | E50: 2 | F50: 12 | G50: =VLOOKUP(C50,'Base de Preço (Salários)'!$A$12:$D$29,4,FALSE) -> 0 | H50: 0 | I50: 0 | J50: 0 | K50: 0 | L50: 0 | M50: 0 | N50: 0
A51: 5.3.5 | B51: Engenheiro Júnior - Automação | C51: P3 | D51: und/mês | E51: 1 | F51: 12 | G51: =VLOOKUP(C51,'Base de Preço (Salários)'!$A$12:$D$29,4,FALSE) -> 0 | H51: 0 | I51: 0 | J51: 0 | K51: 0 | L51: 0 | M51: 0 | N51: 0
A52: 5.3.6 | B52: Engenheiro Júnior - Telecomunicações | C52: P3 | D52: und/mês | E52: 1 | F52: 12 | G52: =VLOOKUP(C52,'Base de Preço (Salários)'!$A$12:$D$29,4,FALSE) -> 0 | H52: 0 | I52: 0 | J52: 0 | K52: 0 | L52: 0 | M52: 0 | N52: 0
A53: 5.4. | B53: SUPORTE
A54: 5.4.1 | B54: Engenheiro Júnior - Hidráulico (Civil ou Mecânica) - Apoio Brasília | C54: P3 | D54: und/mês | E54: 1 | F54: 12 | G54: =VLOOKUP(C54,'Base de Preço (Salários)'!$A$12:$D$29,4,FALSE) -> 0 | H54: 0 | I54: =ROUND((G54+H54)*$I$11,2) -> 0 | J54: =G54+H54+I54 -> 0 | K54: =E54*F54*G54 -> 0 | L54: =(E54*(F54*50%)*H54) -> 0 | M54: =(K54+L54)*I11 -> 0 | N54: =K54+L54+M54 -> 0
A55: 5.4.2 | B55: Engenheiro Júnior - Hidrólogo (Civil) - Apoio Brasília | C55: P3 | D55: und/mês | E55: 1 | F55: 12 | G55: =VLOOKUP(C55,'Base de Preço (Salários)'!$A$12:$D$29,4,FALSE) -> 0 | H55: 0 | I55: =ROUND((G55+H55)*$I$11,2) -> 0 | J55: =G55+H55+I55 -> 0 | K55: =E55*F55*G55 -> 0 | L55: =(E55*(F55*50%)*H55) -> 0 | M55: =(K55+L55)*I11 -> 0 | N55: =K55+L55+M55 -> 0
A56: 5.4.3 | B56: Engenheiro Trainee - Apoio de Campo | C56: P4 | D56: und/mês | E56: 2 | F56: 12 | G56: =VLOOKUP(C56,'Base de Preço (Salários)'!$A$12:$D$29,4,FALSE) -> 0 | H56: =ROUND(G56*$C$11,2) -> 0 | I56: =ROUND((G56+H56)*$K$11,2) -> 0 | J56: =G56+H56+I56 -> 0 | K56: =E56*F56*G56 -> 0 | L56: 0 | M56: =(K56+L56)*$K$11 -> 0 | N56: =K56+L56+M56 -> 0
A57: 5.4.5 | B57: Profissional Pleno em TI - Share Point / BI / SQL Server / Windows | C57: P1 | D57: und/mês | E57: 4 | F57: 12 | G57: =VLOOKUP(C57,'Base de Preço (Salários)'!$A$12:$D$29,4,FALSE) -> 0 | H57: 0 | I57: =ROUND((G57+H57)*$K$11,2) -> 0 | J57: =G57+H57+I57 -> 0 | K57: =E57*F57*G57 -> 0 | L57: =E57*F57*H57 -> 0 | M57: =(K57+L57)*$K$11 -> 0 | N57: =K57+L57+M57 -> 0
A58: 5.4.6 | B58: Técnico Pleno - Cadista / Edificações / Estradas / Geoprocessamento / Hidráulica / Mecânica / Eletrotécnica / Telecomunicações / Automação | C58: T1 | D58: und/mês | E58: 13 | F58: 12 | G58: =VLOOKUP(C58,'Base de Preço (Salários)'!$A$12:$D$29,4,FALSE) -> 0 | H58: =ROUND(G58*$C$11,2) -> 0 | I58: =ROUND((G58+H58)*$K$11,2) -> 0 | J58: =G58+H58+I58 -> 0 | K58: =E58*F58*G58 -> 0 | L58: =E58*F58*H58 -> 0 | M58: =(K58+L58)*$K$11 -> 0 | N58: =K58+L58+M58 -> 0
A59: 6. | B59: CONSULTORIA
A60: 6.1 | B60: Profissional Consultor | C60: c | D60: h | E60: 80 | F60: 12 | G60: =VLOOKUP(C60,'Base de Preço (Salários)'!$A$12:$D$29,3,FALSE) -> 0 | H60: =ROUND(G60*$C$11,2) -> 0 | I60: =ROUND((G60+H60)*$M$11,2) -> 0 | J60: =G60+H60+I60 -> 0 | K60: =E60*F60*G60 -> 0 | L60: =E60*F60*H60 -> 0 | M60: =(K60+L60)*M11 -> 0 | N60: =K60+L60+M60 -> 0
A61: Total Geral - Equipe com Vínculo (R$): | K61: =SUM(K17:K58) -> 0 | L61: =SUM(L17:L58) -> 0 | M61: =SUM(M17:M58) -> 0 | N61: =K61+L61+M61 -> 0
A62: Total Geral - Equipe sem Vínculo - CONSULTORIA (R$): | K62: =SUM(K60:K60) -> 0 | L62: =SUM(L60:L60) -> 0 | M62: =SUM(M60:M60) -> 0 | N62: =K62+L62+M62 -> 0
A63: TOTAL GERAL - Salário Equipe (R$): | K63: =SUM(K61:K62) -> 0 | L63: =SUM(L61:L62) -> 0 | M63: =SUM(M61:M62) -> 0 | N63: =SUM(N61:N62) -> 0
A65: NOME DO INFORMANTE: | L65: QUALIFICAÇÃO:
A67: ASSINTATURA: | L67: DATA:
A69: OBSERVAÇÃO:

Sheet Outras Despesas (Adm_Manut)
A1: Ministério do Desenvolvimento Regional - MDR
A2: Companhia de Desenvolvimento dos Vales do São Francisco e do Parnaíba
A5: CONTRATAÇÃO DOS SERVIÇOS TÉCNICOS ESPECIALIZADOS DE APOIO ÀS ATIVIDADES DA GESTÃO DO PROJETO DE INTEGRAÇÃO DO RIO SÃO FRANCISCO COM AS BACIAS HIDROGRÁFICAS DO NORDESTE SETENTRIONAL – PISF
A8: OUTRAS DESPESAS - ADMINISTRAÇÃO / MANUTENÇÃO DOS ESCRITORIOS
A10: ITEM | B10: DISCRIMINAÇÃO | C10: UND | D10: QTD | E10: Prazo (Mês) | F10: Qnt total de Meses | G10: Custo Unitário (R$) | H10: Custo Total (R$) | I10: Remuneração de Escritório (R$) | J10: Despesas Fiscais (R$) | K10: PREÇO TOTAL (R$)
I12: 0.025 | J12: 0.1662
A13: 1. | B13: Escritório - Admnistração e Logística | K13: =SUM(K14:K21) -> 0
A14: 1.1 | B14: Aluguel | C14: Und/Mês | D14: 1 | E14: 12 | F14: =D14*E14 -> 12 | H14: =F14*G14 -> 0 | I14: =(H14*$I$12) -> 0 | J14: =(H14+I14)*$J$12 -> 0 | K14: =H14+I14+J14 -> 0
A15: 1.2 | B15: Mobiliário para Escritório | C15: Und/Mês | D15: 1 | E15: 12 | F15: =D15*E15 -> 12 | H15: =F15*G15 -> 0 | I15: =(H15*$I$12) -> 0 | J15: 0 | K15: =H15+I15+J15 -> 0
A16: 1.3 | B16: Telefone / Internet | C16: und x mês | D16: 1 | E16: 12 | F16: =D16*E16 -> 12 | H16: =F16*G16 -> 0 | I16: =(H16*$I$12) -> 0 | J16: 0 | K16: =H16+I16+J16 -> 0
A17: 1.4 | B17: Telefone Celular | C17: und x mês | D17: 16 | E17: 12 | F17: 192 | H17: 0 | I17: 0 | J17: 0 | K17: 0
A18: 1.5 | B18: Energia elétrica - Escritórios Apoio Logistico | C18: und x mês | D18: =D14 -> 1 | E18: 12 | F18: 12 | H18: 0 | I18: 0 | J18: 0 | K18: 0
A19: 1.6 | B19: Água e esgoto - Escritórios Apoio Logistico | C19: und x mês | D19: =D14 -> 1 | E19: 12 | F19: 12 | H19: 0 | I19: 0 | J19: 0 | K19: 0
A20: 1.7 | B20: Material de escritório - Apoio | C20: und x mês | D20: =D14 -> 1 | E20: 12 | F20: 12 | H20: 0 | I20: 0 | J20: 0 | K20: 0
A21: 1.8 | B21: Material de limpeza / higiene - Central | C21: und x mês | D21: 1 | E21: 12 | F21: 12 | H21: 0 | I21: 0 | J21: 0 | K21: 0
A22: 2. | B22: Veículos | K22: =SUM(K23:K24) -> 0
A23: 2.1 | B23: Aluguel de veículo leve tipo Sedan 1.6 Flex | C23: und x mês | D23: 2 | E23: 12 | F23: =D23*E23 -> 24 | H23: 0 | I23: 0 | J23: =(H23+I23)*$J$12 -> 0 | K23: =H23+I23+J23 -> 0
A24: 2.2 | B24: Aluguel de veículo tipo pick-up cabine dupla 4x4 | C24: und x mês | D24: 15 | E24: 12 | F24: =D24*E24 -> 180 | H24: 0 | I24: 0 | J24: =(H24+I24)*$J$12 -> 0 | K24: 0
A25: 3. | B25: Equipamentos Diversos | K25: =SUM(K26:K29) -> 0
A26: 3.1 | B26: Instrumental de Topografia (Estação total classe III, Nível classe 2, GPS, Micro/Soft, Radio/Foto, etc) | C26: und x mês | D26: 1 | E26: 12 | F26: =D26*E26 -> 12 | H26: 0 | I26: 0 | J26: =(H26+I26)*$J$12 -> 0 | K26: =H26+I26+J26 -> 0
A27: 3.2 | B27: Notebook | C27: und x mês | D27: 39 | E27: 12 | F27: =D27*E27 -> 468 | H27: =F27*G27 -> 0 | I27: 0 | J27: =(H27+I27)*$J$12 -> 0 | K27: =H27+I27+J27 -> 0
A28: 3.3 | B28: Desktop | C28: und x mês | D28: 3 | E28: 12 | F28: =D28*E28 -> 36 | H28: =F28*G28 -> 0 | I28: 0 | J28: =(H28+I28)*$J$12 -> 0 | K28: =H28+I28+J28 -> 0
A29: 3.4 | B29: Impressoras | C29: und x mês | D29: 1 | E29: 12 | F29: =D29*E29 -> 12 | H29: =F29*G29 -> 0 | I29: 0 | J29: =(H29+I29)*$J$12 -> 0 | K29: =H29+I29+J29 -> 0
A30: 4. | B30: VIAGENS / DIÁRIAS | K30: =SUM(K31:K33) -> 0
A31: 4.1 | B31: Viagens (trecho aéreos) | C31: und | D31: 80 | E31: 1 | F31: =D31*E31 -> 80 | H31: =D31*E31*G31 -> 0 | I31: 0 | J31: =(H31+I31)*$J$12 -> 0 | K31: =H31+I31+J31 -> 0
A32: 4.2 | B32: Diária Nacional - Capital | C32: und | D32: 48 | E32: 1 | F32: =D32*E32 -> 48 | H32: =D32*G32 -> 0 | I32: 0 | J32: =(H32+I32)*$J$12 -> 0 | K32: =H32+I32+J32 -> 0
A33: 4.3 | B33: Diárias Nacional - Interior | C33: und | D33: 2136 | E33: 1 | F33: 12 | H33: =D33*G33 -> 0 | I33: 0 | J33: =(H33+I33)*$J$12 -> 0 | K33: =H33+I33+J33 -> 0
A34: TOTAL(custos diretos) - OUTRAS DESPESAS (R$): | H34: =SUM(H14:H33) -> 0 | I34: =SUM(I14:I33) -> 0 | J34: =SUM(J14:J33) -> 0 | K34: =K13+K22+K25+K30 -> 0
A37: REMUNERAÇÃO DE ESCRITÓRIO (TAXA DE 2,5% DOS ITENS - OUTRAS DESPESAS): | H37: =0.025*H34 -> 0
A38: DESPESAS FISCAIS ( 16,62% DOS ITENS Outras Despesas + Remuneração escritório): | H38: =0.1662*(H34+H37) -> 0
A39: CUSTOS INDIRETOS - Total (R$): | H39: =SUM(H37:H38) -> 0
A42: NOME DO INFORMANTE: | I42: QUALIFICAÇÃO:
A44: ASSINATURA: | J44: DATA:
A46: OBSERVAÇÃO:
A47: 1. | B47: Fonte do Preço dos aluguéis: Tabela de Consutoria SICRO/DNIT e Contratos PISF/Codevasf
A48: 2. | B48: Fonte do Preço do Mobiliário: Tabela de Consutoria SICRO/DNIT e Preços de mercado
A49: 3. | B49: Fonte do Quantitativo/Valor Manutenção: Baseado nos contratos existentes do PISF/Codevasf e Preços de Mercado
A50: 4. | B50: Fonte do preço de energia e água das residencias/escritorios: Baseado no valor das faturas mensais dos contratos existentes atualmente (AD/GOI/CCO)
A51: 5. | B51: Fonte do preço Aluguel de Veículos: Tabela consultiva Codevasf (Já incluem combustível e manutenção)
B52: Fonte do preço das Diárias: Norma Codevasf
A53: 7. | B53: Remuneração de Escritório: Taxa de 2,5% incindindo sobre Salários, Encargos, Custo de Administração
A54: 8. | B54: Despesas Fiscais: Taxa de 16,62% incindindo sobre Custo Total e Remuneração de Escritório
A55: 9. | B55: Preço Total = Custo total (Despesas Diretas) + Remuneração de Escritório e Despesas Fiscais (Despesas Indiretas)

Sheet Custo Adminstração (Detalham)
A1: Ministério do Desenvolvimento Regional - MDR
A2: Companhia de Desenvolvimento dos Vales do São Francisco e do Parnaíba
A5: CONTRATAÇÃO DOS SERVIÇOS TÉCNICOS ESPECIALIZADOS DE APOIO ÀS ATIVIDADES DA GESTÃO DO PROJETO DE INTEGRAÇÃO DO RIO SÃO FRANCISCO COM AS BACIAS HIDROGRÁFICAS DO NORDESTE SETENTRIONAL – PISF
A9: CUSTOS ADMINISTRAÇÃO - DETALHAMENTO
A12: DISCRIMINAÇÃO | C12: %
A13: 1 | B13: Custos da equipe da administração central da empresa consultora ( diretoria, pessoal técnico de apoio e pessoal administrativo não diretamente vinculado à prestação dos serviços)
A16: 2 | B16: Outras despesas que afetam o custo de produção (como treinamento, EPI, biblioteca, programa de qualidade, auditoria interna e externa, entre outros)
A19: 3 | B19: Despesas com aluguéis, comunicação, manutenção e transporte não diretamente relacionados com o custo direto dos serviços
A22: TOTAIS DO CUSTO DE ADMINISTRAÇÃO | C22: =SUM(C13:C20) -> 0
A24: NOME DO INFORMANTE: | C24: QUALIFICAÇÃO:
A26: ASSINATURA: | C26: DATA:
A28: OBSERVAÇAO:

Sheet Despesas Fiscais
A1: Ministério do Desenvolvimento Regional - MDR
A2: Companhia de Desenvolvimento dos Vales do São Francisco e do Parnaíba
A5: CONTRATAÇÃO DE APOIO TÉCNICO PARA ACOMPANHAMENTO DAS ATIVIDADES DA GESTÃO DO PROJETO DE INTEGRAÇÃO DO RIO SÃO FRANCISCO COM AS BACIAS HIDROGRÁFICAS DO NORDESTE SETENTRIONAL – PISF
A9: DESPESAS FISCAIS - DETALHAMENTO
A11: DISCRIMINAÇÃO | C11: DF % | D11: DF' %
A12: 1 | B12: 1 - ISS | D12: =(1/(1-$C$15/100))*C12 -> 0
A13: 2 | B13: 2 - PIS | D13: =(1/(1-$C$15/100))*C13 -> 0
A14: 3 | B14: 3 - COFINS | D14: =(1/(1-$C$15/100))*C14 -> 0
A15: TOTAIS DE DESPESAS FISCAIS: | C15: =C12+C13+C14 -> 0 | D15: =D12+D13+D14 -> 0
A19: NOME DO INFORMANTE: | C19: QUALIFICAÇÃO:
A21: ASSINATURA: | D21: DATA:
A23: OBSERVAÇAO:
A24: 1 - DISCRIMINAR OS TRIBUTOS QUE INCIDEM SOBRE OS CUSTOS DA PRESTAÇÃO DOS SERVIÇOS
A26: 2 - DF = INDICAR O % DE CADA TRIBUTO E A SOMA DOS MESMOS (ex: ISS 5% + PIS 1,65% + COFINS 7,60% = 14,25%)
A28: 3 - AS DESPESAS FISCAIS (DF) INCIDEM SOBRE O TOTAL DA FATURA E NÃO SOBRE OS CUSTOS INCORRIDOS, DEVENDO SER CALCULADO O DF' APLICANDO-SE A SEGUINTE FÓRMULA:
A30: DF' = { [ 1 / ( 1 - DF) ] - 1 } x 100
A31: DF' = { [ 1 / ( 1 - 0,1425 ) ] - 1 } x 100
A32: DF' = 0,1662 ou 16,62%. APLICAR O % P/ CALCULAR AS DESPESAS FISCAIS
A34: 4 - O ISS a ser considerado é o do município de Salgueiro-PE

Sheet Encargos Sociais
A1: Ministério do Desenvolvimento Regional - MDR
A2: Companhia de Desenvolvimento dos Vales do São Francisco e do Parnaíba
A5: CONTRATAÇÃO DE APOIO TÉCNICO PARA ACOMPANHAMENTO DAS ATIVIDADES DA GESTÃO DO PROJETO DE INTEGRAÇÃO DO RIO SÃO FRANCISCO COM AS BACIAS HIDROGRÁFICAS DO NORDESTE SETENTRIONAL – PISF
A8: ENCARGOS SOCIAIS E TRABALHISTAS
A10: ITEM | B10: DESCRIÇÃO | C10: DISTRITO FEDERAL | F10: PERNAMBUCO
C11: Horista | D11: Mensalista | F11: Horista | G11: Mensalista
A13: GRUPO "A" | C13: % | D13: % | F13: % | G13: %
A14: A1 | B14: INSS (Art. 22 inciso I da Lei 8.212/91) | C14: 0.2 | D14: 0.2 | F14: 0.2 | G14: 0.2
A15: A2 | B15: SESC/SESI (Art. 3° da Lei 8036/90) | C15: 0.015 | D15: 0.015 | F15: 0.015 | G15: 0.015
A16: A3 | B16: SENAC/SENAI (Decreto 2.318/86) | C16: 0.01 | D16: 0.01 | F16: 0.01 | G16: 0.01
A17: A4 | B17: INCRA (Lei 7787 de 30/06/890e DL 1146/70) | C17: 0.002 | D17: 0.002 | F17: 0.002 | G17: 0.002
A18: A5 | B18: SEBRAE (Art. 8° Lei 8029/90 e 8154 de 28/12/90) | C18: 0.006 | D18: 0.006 | F18: 0.006 | G18: 0.006
A19: A6 | B19: Salário Educação (Art. 3° inciso I Decreto 87.043/) | C19: 0.025 | D19: 0.025 | F19: 0.025 | G19: 0.025
A20: A7 | B20: Seguro contra Acidentes de Trabalho (Decreto 3.048/1999, Anexo V e Decreto 6.957/2009) | C20: 0.03 | D20: 0.03 | F20: 0.03 | G20: 0.03
A21: A8 | B21: FGTS (Art. 15 da Lei 8030/90 art. 7° inciso III CF/88) | C21: 0.08 | D21: 0.08 | F21: 0.08 | G21: 0.08
A22: A8 | B22: SECONCI | C22: 0.01 | D22: 0.01 | F22: - | G22: -
A23: TOTAL - Grupo A: | C23: =SUM(C14:C22) -> 0.378 | D23: =SUM(D14:D22) -> 0.378 | F23: =SUM(F14:F21) -> 0.368 | G23: =SUM(G14:G21) -> 0.368
A25: GRUPO "B" | C25: % | D25: % | F25: % | G25: %
A26: B1 | B26: Repouso semanal remunerado | C26: 0.1777 | D26: - | F26: 0.1806 | G26: -
A27: B2 | B27: Feriados | C27: 0.0341 | D27: - | F27: 0.0433 | G27: -
A28: B3 | B28: Auxílio Enfermidade | C28: 0.009 | D28: 0.007 | F28: 0.0093 | G28: 0.0071
A29: B4 | B29: 13º Salário | C29: 0.1072 | D29: 0.0833 | F29: 0.1086 | G29: 0.0833
A30: B5 | B30: Licença Paternidade Faltas justificadas | C30: 0.0006 | D30: 0.0005 | F30: 0.0007 | G30: 0.0006
A31: B6 | B31: Faltas Justificadas | C31: 0.0071 | D31: 0.0056 | F31: 0.0072 | G31: 0.0056
A32: B7 | B32: Dias de Chuva | C32: 0.0142 | D32: - | F32: 0.0218 | G32: -
A33: B8 | B33: Auxílio Acidente de Trabalho | C33: 0.0011 | D33: 0.0008 | F33: 0.0011 | G33: 0.0009
A34: B9 | B34: Férias Gozadas | C34: 0.0812 | D34: 0.0631 | F34: 0.0769 | G34: 0.059
A35: B10 | B35: Salário Maternidade | C35: 0.0003 | D35: 0.0002 | F35: 0.0003 | G35: 0.0002
A36: TOTAL - Grupo B: | C36: =SUM(C26:C35) -> 0.4325 | D36: =SUM(D26:D35) -> 0.1605 | F36: =SUM(F26:F35) -> 0.4498 | G36: =SUM(G26:G35) -> 0.1567
A38: GRUPO "C" | C38: % | D38: % | F38: % | G38: %
A39: C1 | B39: Aviso Prévio Indenizado | C39: 0.0519 | D39: 0.0404 | F39: 0.0483 | G39: 0.0371
A40: C2 | B40: Aviso Prévio Trabalhado | C40: 0.0012 | D40: 0.001 | F40: 0.0011 | G40: 0.0009
A41: C3 | B41: Férias Indenizadas | C41: 0.0524 | D41: 0.0408 | F41: 0.0596 | G41: 0.0458
A42: C4 | B42: Depósito Rescisão sem Justa Causa | C42: 0.0498 | D42: 0.0388 | F42: 0.0496 | G42: 0.0381
A43: C5 | B43: Indenização Adicional | C43: 0.0044 | D43: 0.0034 | F43: 0.0041 | G43: 0.0031
A44: TOTAL - Grupo C: | C44: =SUM(C39:C43) -> 0.1597 | D44: =SUM(D39:D43) -> 0.1244 | F44: =SUM(F39:F43) -> 0.1627 | G44: =SUM(G39:G43) -> 0.125
A46: GRUPO "D" | C46: % | D46: % | F46: % | G46: %
A47: D1 | B47: Reincidência de Grupo A sobre Grupo B | C47: =C23*C36 -> 0.163485 | D47: =ROUND(D23*D36,4) -> 0.0607 | F47: =F23*F36 -> 0.1655264 | G47: =G23*G36 -> 0.0576656
A48: D2 | B48: Reincidência de Grupo A sobre C2 e Reincidência de A8 sobre C1 | C48: =(C23*C40)+(C21*C39) -> 0.0046056 | D48: =ROUND((D23*D40)+(D21*D39),4) -> 0.0036 | F48: =(F23*F40)+(F21*F39) -> 0.0042688 | G48: =(G23*G40)+(G21*G39) -> 0.0032992
A49: TOTAL - Grupo D: | C49: =SUM(C47:C48) -> 0.1680906 | D49: =SUM(D47:D48) -> 0.0643 | F49: =SUM(F47:F48) -> 0.1697952 | G49: =SUM(G47:G48) -> 0.0609648
A52: QUADRO-RESUMO: ENCARGOS SOCIAIS E TRABALHISTAS | C52: % | D52: % | F52: % | G52: %
A53: GRUPO "A" | C53: =C23 -> 0.378 | D53: =D23 -> 0.378 | F53: =F23 -> 0.368 | G53: =G23 -> 0.368
A54: GRUPO "B" | C54: =C36 -> 0.4325 | D54: =D36 -> 0.1605 | F54: =F36 -> 0.4498 | G54: =G36 -> 0.1567
A55: GRUPO "C" | C55: =C44 -> 0.1597 | D55: =D44 -> 0.1244 | F55: =F44 -> 0.1627 | G55: =G44 -> 0.125
A56: GRUPO "D" | C56: =C49 -> 0.1680906 | D56: =D49 -> 0.0643 | F56: =F49 -> 0.1697952 | G56: =G49 -> 0.0609648
A57: TOTAL - Encargos Sociais e Trabalhistas: | C57: =SUM(C53:C56) -> 1.1382906 | D57: =SUM(D53:D56) -> 0.7272 | F57: =SUM(F53:F56) -> 1.1502952 | G57: =SUM(G53:G56) -> 0.7106648
A60: NOME DO INFORMANTE: | E60: QUALIFICAÇÃO:
A62: ASSINATURA: | E62: DATA:
A64: OBSERVAÇÃO:
A65: 1. | B65: Fonte: CAIXA ECONÔMICA FEDERAL
A66: 2. | B66: Os percentuais dos encargos previdenciários e FGTS, a serem preenchidos na coluna %, são aqueles estabelecidos pela legislação vigente, incidentes sobre a remuneração

Sheet Base de Preço (Salários)
A1: Ministério do Desenvolvimento Regional - MDR
A2: Companhia de Desenvolvimento dos Vales do São Francisco e do Parnaíba
A5: CONTRATAÇÃO DE APOIO TÉCNICO PARA ACOMPANHAMENTO DAS ATIVIDADES DA GESTÃO DO PROJETO DE INTEGRAÇÃO DO RIO SÃO FRANCISCO COM AS BACIAS HIDROGRÁFICAS DO NORDESTE SETENTRIONAL – PISF
A8: MEMORIAL DE CÁLCULO - SALÁRIOS - Pernambuco
A10: Categoria | B10: Profissional | C10: Salário
C11: Hora | D11: Mensal
A12: C | B12: Categoria Profissional adotado Sal. Mensal (R$) Sociais c/ Encargos Sociais | D12: =C12*176 -> 0
A13: P0 | B13: Engenheiro - Profissional Sênior (N. Superior - Formação: T > 15 anos) | D13: =C13*176 -> 0
A14: P1 | B14: Engenheiro - Profissional Pleno (N. Superior - Formação: 10 < T < 15 anos) | D14: 0
A15: P2 | B15: Engenheiro - Profissional Médio (N. Superior - Formação: 8 < T < 10 anos) | D15: 0
A16: P3 | B16: Engenheiro - Profissional Junior (N. Superior - Formação: 4 < T < 8 anos) | D16: 0
A17: P4 | B17: Engenheiro - Profissional Trainee (N. Superior - Formação: T < 4 anos) | D17: 0
A18: TS | B18: Técnico - Profissional Especials (N. Médio/Especializado - Formação: T > 10 anos) | D18: 0
A19: T0 | B19: Técnico - Profissional Sênior (N. Médio/Especializado - Formação: 5 < T < 10 anos) | D19: 0
A20: T1 | B20: Técnico - Profissional Pleno (N. Médio/Especializado - Formação: 5 < 10 < anos) | D20: 0
A21: T2 | B21: Técnico - Profissional Junior (N. Médio/Especializado - Formação: T < 5 anos) | D21: 0
A22: T3 | B22: Técnico - Auxiliar (N. Elementar) | D22: 0
A23: T4 | B23: Servente / Contínuos | D23: 0
A24: AS | B24: Chefe de Escritório (Nível Superior - Formação: T > 15 anos) | D24: 0
A25: A0 | B25: Secretária (N. Médio - Formação: 8 < T < 15 anos) | D25: 0
A26: A1 | B26: Assistente Administrativo (N. Médio - Formação: T > 8 anos) | D26: 0
A27: A2 | B27: Ajudante Administrativo (N. Médio - Formação: T < 8 anos) | D27: 0
A28: A3 | B28: Auxiliar Administrativo / Motorista (N. Elementar) | D28: 0
A29: A4 | B29: Serviços Gerais / Vigia (N. Elementar) | D29: 0
A30: A4.1 | B30: Serviços Gerais / Vigia (N. Elementar) - NOTURNO | D30: =C30*176 -> 0
A32: MEMORIAL DE CÁLCULO - SALÁRIOS - Distrito Federal
A34: Categoria | B34: Profissional | C34: Salário
C35: Hora | D35: Mensal
A36: C | B36: Categoria Profissional adotado Sal. Mensal (R$) Sociais c/ Encargos Sociais | D36: =C36*176 -> 0
A37: P0 | B37: Engenheiro - Profissional Sênior (N. Superior - Formação: T > 15 anos) | D37: =C37*176 -> 0
A38: P1 | B38: Engenheiro - Profissional Pleno (N. Superior - Formação: 10 < T < 15 anos) | D38: 0
A39: P2 | B39: Engenheiro - Profissional Médio (N. Superior - Formação: 8 < T < 10 anos) | D39: 0
A40: P3 | B40: Engenheiro - Profissional Junior (N. Superior - Formação: 4 < T < 8 anos) | D40: 0
A41: P4 | B41: Engenheiro - Profissional Trainee (N. Superior - Formação: T < 4 anos) | D41: 0
A42: TS | B42: Técnico - Profissional Especials (N. Médio/Especializado - Formação: T > 10 anos) | D42: 0
A43: T0 | B43: Técnico - Profissional Sênior (N. Médio/Especializado - Formação: 5 < T < 10 anos) | D43: 0
A44: T1 | B44: Técnico - Profissional Pleno (N. Médio/Especializado - Formação: 5 < 10 < anos) | D44: 0
A45: T2 | B45: Técnico - Profissional Junior (N. Médio/Especializado - Formação: T < 5 anos) | D45: 0
A46: T3 | B46: Técnico - Auxiliar (N. Elementar) | D46: 0
A47: T4 | B47: Servente / Contínuos | D47: 0
A48: AS | B48: Chefe de Escritório (Nível Superior - Formação: T > 15 anos) | D48: 0
A49: A0 | B49: Secretária (N. Médio - Formação: 8 < T < 15 anos) | D49: 0
A50: A1 | B50: Assistente Administrativo (N. Médio - Formação: T > 8 anos) | D50: 0
A51: A2 | B51: Ajudante Administrativo (N. Médio - Formação: T < 8 anos) | D51: 0
A52: A3 | B52: Auxiliar Administrativo / Motorista (N. Elementar) | D52: 0
A53: A4 | B53: Serviços Gerais / Vigia (N. Elementar) | D53: 0
A56: Fonte: Tabela Engenharia Consultiva Codevasf 2019
